fUSD/lending_fUSD_20250905
["ID","MTS","AMOUNT","RATE_DAILY","PERIOD"]
[383677075,1757080304706,-331.86621991,0.00037835,120]
[383677076,1757080304716,-170.84922537,0.00037835,30]
[383677077,1757080304726,-577.85591764,0.00037835,120]
[383677078,1757080304736,-150.39492845,0.00037835,120]
[383677079,1757080304746,-182.18780917,0.00037835,90]
[383677080,1757080304756,-590.88996308,0.00037835,120]
[383677081,1757080304766,-716.8580882,0.00037835,120]
[383677082,1757080304776,-206.67882334,0.00037835,75]
[383677083,1757080304786,-165.7267283,0.00037835,120]
[383677084,1757080304796,-1859.39897212,0.00037835,120]
[383677085,1757080304807,-165.16469692,0.00037835,30]
[383677086,1757080304817,-159.94748841,0.00037835,120]
[383677087,1757080304827,-237.08536253,0.00037835,30]
[383677088,1757080304836,-306.35240033,0.00037835,120]
[383677089,1757080304846,-1617.67752734,0.00037835,120]
[383677090,1757080304856,-189.33615205,0.00037835,120]
[383677091,1757080304865,-422.81304616,0.00037835,60]
[383677092,1757080304875,-2184.25440731,0.00037835,120]
[383677093,1757080304885,-1363.44368291,0.00037835,120]
[383677094,1757080304895,-506.60486501,0.00037835,120]
[383677095,1757080304904,-367.14527458,0.00037835,120]
[383677096,1757080304915,-786.7346116,0.00037835,120]
[383677097,1757080304924,-245.80445653,0.00037835,120]
[383677098,1757080304934,-1441.33327013,0.00037835,56]
[383677099,1757080304943,-1102.91803675,0.00037835,120]
[383677100,1757080304953,-268.70001467,0.00037835,30]
[383677101,1757080304963,-493.73676112,0.00037835,30]
[383677102,1757080304973,-755.23370782,0.00037835,120]
[383677103,1757080304983,-857.60187458,0.00037835,60]
[383677104,1757080304993,-836.42567823,0.00037835,30]
[383677105,1757080305003,-500.0,0.00037835,120]
[383677106,1757080305013,-2349.000001,0.00037835,60]
[383677107,1757080305023,-3671.24360481,0.00037835,30]
[383677108,1757080305032,-26242.74286232,0.00037835,90]
[383677109,1757080305042,-14131.7830302,0.00037835,120]
[383677110,1757080305051,-462.93943309,0.00037835,5]
[383677111,1757080305061,-88780.37051374,0.00037835,120]
[383677112,1757080305072,-5007.0,0.00037835,60]
[383677113,1757080305082,-5007.0,0.00037835,60]
[383677114,1757080305092,-5007.0,0.00037835,60]
[383677115,1757080305103,-5007.0,0.00037835,60]
[383677116,1757080305112,-5007.0,0.00037835,60]
[383677117,1757080305123,-5007.0,0.00037835,60]
[383677118,1757080305133,-5007.0,0.00037835,60]
[383677119,1757080305143,-5007.0,0.00037835,60]
[383677120,1757080305153,-5007.0,0.00037835,60]
[383677121,1757080305164,-5007.0,0.00037835,60]
[383677122,1757080305174,-2500.0,0.00037835,95]
[383677123,1757080305184,-248.46394112,0.00037835,30]
[383677124,1757080305194,-300.0,0.00037835,30]
[383677125,1757080305204,-300.0,0.00037835,30]
[383677126,1757080305214,-300.0,0.00037835,30]
[383677127,1757080305224,-300.0,0.00037835,30]
[383677128,1757080305234,-300.0,0.00037835,30]
[383677129,1757080305243,-300.0,0.00037835,30]
[383677130,1757080305253,-300.0,0.00037835,30]
[383677131,1757080305263,-300.0,0.00037835,30]
[383677132,1757080305272,-300.0,0.00037835,30]
[383677133,1757080305282,-300.0,0.00037835,30]
[383677134,1757080305292,-300.0,0.00037835,30]
[383677135,1757080305301,-300.0,0.00037835,30]
[383677136,1757080305312,-300.0,0.00037835,30]
[383677137,1757080305325,-8072.12361559,0.00037835,7]
[383677138,1757080305334,-3777.69497972,0.00037835,7]
[383677139,1757080305344,-3792.3677061,0.00037835,7]
[383677140,1757080305354,-25843.09094521,0.00037835,7]
[383677141,1757080305363,-9310.3220063,0.00037835,7]
[383677142,1757080305372,-2357.85505126,0.00037835,7]
[383677143,1757080305382,-501.4682229,0.00037835,120]
[383677144,1757080305391,-530.0,0.00037835,15]
[383677145,1757080305402,-500.0,0.00037835,120]
[383677146,1757080305412,-350.13778647,0.00037835,120]
[383677147,1757080305420,-156.12903198,0.00037835,120]
[383677148,1757080305429,-157.86040556,0.00037835,60]
[383677149,1757080305438,-309.63334548,0.00037835,30]
[383677150,1757080305448,-471.44730852,0.00037835,120]
[383677151,1757080305458,-307.95412478,0.00037835,120]
[383677152,1757080305470,-706.94961518,0.00037835,90]
[383677153,1757080305481,-156.58125834,0.00037835,30]
[383677154,1757080305494,-1259.79465854,0.00037835,120]
[383677155,1757080305504,-164.96670477,0.00037835,60]
[383677156,1757080305514,-151.95219423,0.00037835,60]
[383677157,1757080305524,-36800.0,0.00037835,30]
[383677158,1757080305534,-36800.0,0.00037835,30]
[383677159,1757080305544,-36800.0,0.00037835,30]
[383677160,1757080305553,-150.64400878,0.00037835,60]
[383677161,1757080305563,-1499.06131646,0.00037835,120]
[383677162,1757080305574,-153.73725315,0.00037835,120]
[383677163,1757080305586,-1000.0,0.00037835,60]
[383677164,1757080305595,-473.9625,0.00037835,120]
[383677165,1757080305605,-241.0,0.00037835,120]
[383677166,1757080305615,-14298.75,0.00037835,30]
[383677167,1757080305625,-499.999999,0.00037835,120]
[383677168,1757080305635,-335.0,0.00037835,30]
[383677169,1757080305647,-532.49472112,0.00037835,120]
[383677170,1757080305657,-500000.0,0.00037835,120]
[383677171,1757080305667,-528.71641983,0.00037835,30]
[383677172,1757080305676,-112273.35,0.00037835,60]
[383677173,1757080305687,-1649855.23715687,0.00037835,60]
[383677174,1757080305877,-436.0,0.00037835,60]
[383677175,1757080305968,-302.0,0.00037835,60]
[383677176,1757080305980,-2230.45,0.00037835,60]
[383677177,1757080305991,-3391.5,0.00037835,60]
[383677178,1757080306003,-389.87049997,0.00037835,60]
[383677179,1757080306014,-1665.88,0.00037835,60]
[383677180,1757080306042,-673.56363257,0.000279,2]
[383677181,1757080306053,-1726.00860832,0.00037835,60]
[383677182,1757080306344,-420.35319868,0.00024656,2]
[383677183,1757080306463,-79.64680132,0.00024656,2]
[383677184,1757080306473,-552.79005791,0.00024656,2]
[383677185,1757080306482,-99.61325942,0.00024886,2]
[383677186,1757080306496,-300.38674058,0.00024886,2]
[383677187,1757080306507,-400.0,0.0002516,2]
[383677188,1757080306516,-1175.0,0.00025339,2]
[383677189,1757080306526,-400.0,0.00025434,2]
[383677190,1757080306536,-400.0,0.00025708,2]
[383677191,1757080306546,-400.0,0.00025982,2]
[383677192,1757080306556,-578.05023943,0.00027397,2]
[383677193,1757080306566,-770.106,0.00028339,2]
[383677194,1757080306578,-500.0,0.00032877,7]
[383677195,1757080306587,-500.0,0.00032877,7]
[383677196,1757080306598,-500.0,0.00032877,7]
[383677197,1757080306607,-500.0,0.00032877,7]
[383677198,1757080306617,-500.0,0.00032877,7]
[383677199,1757080306626,-500.0,0.00032877,7]
[383677200,1757080306636,-500.0,0.00032877,7]
[383677201,1757080306645,-500.0,0.00032877,7]
[383677202,1757080306655,-500.0,0.00032877,7]
[383677203,1757080306664,-500.0,0.00032877,7]
[383677204,1757080306673,-500.0,0.00032877,7]
[383677205,1757080306683,-500.0,0.00032877,7]
[383677206,1757080306693,-500.0,0.00032877,7]
[383677207,1757080306703,-500.0,0.00032877,7]
[383677208,1757080306712,-500.0,0.00032877,7]
[383677209,1757080306721,-500.0,0.00032877,7]
[383677210,1757080306731,-500.0,0.00032877,7]
[383677211,1757080306740,-500.0,0.00032877,7]
[383677212,1757080306750,-500.0,0.00032877,7]
[383677213,1757080306759,-500.0,0.00032877,7]
[383677214,1757080306768,-500.0,0.00032877,7]
[383677215,1757080306778,-500.0,0.00032877,7]
[383677216,1757080306844,-500.0,0.00032877,7]
[383677217,1757080306854,-422.25162939,0.00032877,7]
[383677218,1757080306864,-500.0,0.00032877,7]
[383677219,1757080306874,-500.0,0.00032877,7]
[383677220,1757080306881,-500.0,0.00032877,7]
[383677221,1757080306889,-500.0,0.00032877,7]
[383677222,1757080306898,-673.56363255,0.000364,2]
[383677223,1757080306906,-219746.08373484,0.00037835,60]
[383677224,1757080306914,-50000.0,0.00037835,30]
[383677225,1757080306921,-7138.07399971,0.00037835,120]
[383677226,1757080306929,-11237.24402814,0.00037835,120]
[383677227,1757080306936,-3582.0,0.00037835,30]
[383677228,1757080306944,-343.21906521,0.00037835,30]
[383677229,1757080306951,-162.66206364,0.00037835,30]
[383677230,1757080306958,-5100.0,0.00037835,37]
[383677231,1757080306965,-13002.90296676,0.00037835,120]
[383677232,1757080307316,-195.85,0.00024052,2]
[383677233,1757080307330,-400.0,0.00026256,2]
[383677234,1757080307339,-314.09803424,0.0002653,2]
[383677235,1757080308659,150.96,0.00013253,2]
[383677236,1757080308692,150.96,0.00015147,2]
[383677237,1757080308723,150.96,0.0001704,2]
[383677238,1757080308755,150.96,0.00018933,2]
[383677239,1757080309003,156.26,0.00013699,2]
[383677240,1757080309899,-150.96,0.00020827,2]
[383677241,1757080309924,-16.73233354,0.000218,2]
[383677242,1757080311987,-166.94,0.000218,2]
[383677246,1757080713211,-165.22,0.00021016,2]
[383677260,1757080909197,-171.80693099,0.0002136,2]
[383677261,1757080911675,-156.0,0.0002136,2]
[383677262,1757080915172,-290.58,0.0002136,2]
[383677263,1757080917642,-381.61306901,0.0002136,2]
[383677264,1757080917666,-78.58368799,0.0002136,2]
[383677265,1757080919152,-206.56131201,0.0002136,2]
[383677266,1757080919174,-212.30769255,0.0002136,2]
[383677268,1757080925662,-156.7,0.0002136,2]
[383677269,1757080929149,-472.03,0.0002136,2]
[383677270,1757080932017,-158.96230745,0.0002136,2]
[383677271,1757080932039,-107.02439218,0.0002136,2]
[383677273,1757080935108,-568.43660782,0.0002136,2]
[383677277,1757081185317,250.0,0.00015,2]
[383677278,1757081263412,157.88,0.00013699,2]
[383677279,1757081358488,200.0,0.00030037,120]
[383677281,1757081389557,153.17,0.0001299,2]
[383677282,1757081390203,153.17,0.00014434,2]
[383677283,1757081390412,153.17,0.00015877,2]
[383677284,1757081390612,153.17,0.0001732,2]
[383677285,1757081390847,153.17,0.00018764,2]
[383677286,1757081391684,-153.17,0.00020207,2]
[383677298,1757081432188,-153.17,0.00021651,2]
[383677299,1757081432197,-213.61016646,0.000218,2]
[383677300,1757081432207,-153.17,0.00023094,2]
[383677301,1757081432217,-1200.0,0.00023193,2]
[383677302,1757081432226,-300.0,0.00023193,2]
[383677303,1757081432236,-161.0,0.00023194,2]
[383677304,1757081432245,-73.63493159,0.00023194,2]
[383677305,1757081432258,-426.36506841,0.00023194,2]
[383677306,1757081432268,-500.0,0.00023194,2]
[383677307,1757081432277,-500.0,0.00023194,2]
[383677308,1757081432287,-500.0,0.00023194,2]
[383677309,1757081432302,-54.15476342,0.00023194,2]
[383677310,1757081432314,-445.84523658,0.00023194,2]
[383677311,1757081432323,-324.2169191,0.00023194,2]
[383677312,1757081432332,-500.0,0.00023194,2]
[383677313,1757081432342,-500.0,0.00023194,2]
[383677314,1757081432352,-500.0,0.00023194,2]
[383677315,1757081432361,-500.0,0.00023194,2]
[383677316,1757081432370,-500.0,0.00023194,2]
[383677317,1757081432380,-500.0,0.00023194,2]
[383677318,1757081432389,-500.0,0.00023194,2]
[383677319,1757081432399,-460.19077607,0.00023194,2]
[383677320,1757081432408,-500.0,0.00023194,2]
[383677321,1757081432417,-500.0,0.00023194,2]
[383677322,1757081432427,-500.0,0.00023194,2]
[383677323,1757081432437,-5142.14674666,0.000232,2]
[383677324,1757081432446,-153.17,0.00024537,2]
[383677325,1757081432456,-400.0,0.00024886,2]
[383677326,1757081432465,-400.0,0.00024887,2]
[383677327,1757081432475,-400.0,0.00024887,2]
[383677328,1757081432484,-203.98842162,0.00024887,2]
[383677329,1757081432494,-400.0,0.00024887,2]
[383677330,1757081432504,-3348.94190053,0.000249,2]
[383677331,1757081432513,-3851.65,0.00025,7]
[383677332,1757081432523,-400.0,0.0002516,2]
[383677333,1757081432532,-400.0,0.00025161,2]
[383677334,1757081432545,-400.0,0.00025161,2]
[383677335,1757081432555,-400.0,0.00025161,2]
[383677336,1757081432564,-290.59,0.000253,2]
[383677337,1757081432574,-365.95865703,0.00025434,2]
[383677338,1757081432583,-232.26975256,0.00025435,2]
[383677339,1757081432593,-400.0,0.00025435,2]
[383677340,1757081432603,-400.0,0.00025435,2]
[383677341,1757081432613,-195.85,0.00025678,2]
[383677344,1757081432624,-150.0,0.00025698,2]
[383677346,1757081432634,-900.0,0.000257,9]
[383677348,1757081432644,-900.0,0.000257,9]
[383677350,1757081432653,-900.0,0.000257,9]
[383677351,1757081432663,-900.0,0.000257,9]
[383677352,1757081432672,-900.0,0.000257,9]
[383677353,1757081432681,-900.0,0.000257,9]
[383677354,1757081432691,-900.0,0.000257,9]
[383677355,1757081432701,-924.61102977,0.000257,9]
[383677356,1757081432711,-168.0,0.00025704,2]
[383677357,1757081432720,-400.0,0.00025709,2]
[383677358,1757081432730,-400.0,0.00025709,2]
[383677359,1757081432739,-167.0,0.00025768,2]
[383677360,1757081432749,-501.09051193,0.00025813,2]
[383677361,1757081432761,-191.33,0.00025823,2]
[383677362,1757081432771,-746.01,0.00025834,2]
[383677363,1757081432782,-3348.94190053,0.00025929,4]
[383677364,1757081432793,-847.98,0.00025935,2]
[383677365,1757081432803,-1591.09,0.00025952,2]
[383677366,1757081432812,-153.17,0.00025981,2]
[383677367,1757081432821,-400.0,0.00025983,2]
[383677368,1757081432831,-553.14,0.00025995,2]
[383677369,1757081432841,-176.43,0.00025995,2]
[383677370,1757081432851,-162.32,0.00025997,2]
[383677371,1757081432861,-3851.65,0.00026,7]
[383677372,1757081432870,-400.0,0.00026257,2]
[383677373,1757081432879,-666.0,0.00026426,3]
[383677374,1757081432890,-250.0,0.00026458,2]
[383677375,1757081432899,-171.05,0.00026459,2]
[383677376,1757081432909,-410.04,0.00026531,2]
[383677377,1757081432919,-500.0,0.00026594,2]
[383677378,1757081432928,-200.0,0.00026645,2]
[383677379,1757081432938,-3348.94190053,0.00026959,6]
[383677380,1757081432948,-3851.65,0.00027,7]
[383677381,1757081432958,-516.0,0.00027137,2]
[383677382,1757081432967,-300.0,0.00027397,2]
[383677383,1757081432977,-2140.0,0.0002742,2]
[383677384,1757081432987,-502.55,0.00027425,30]
[383677385,1757081432996,-2500.0,0.00027461,7]
[383677386,1757081433005,-2500.0,0.0002747,7]
[383677387,1757081433015,-1594.20210305,0.00027479,7]
[383677388,1757081433028,-566.4172777,0.00027479,7]
[383677389,1757081433041,-339.38061925,0.00027479,7]
[383677390,1757081433052,-1043.3721036,0.00027703,2]
[383677391,1757081433064,-1096.6278964,0.00027703,2]
[383677392,1757081433074,-164.82,0.00027891,2]
[383677393,1757081433084,-992.73418059,0.00027985,2]
[383677394,1757081433097,-1147.26581941,0.00027985,2]
[383677395,1757081433107,-560.69737874,0.00027988,8]
[383677396,1757081433119,-988.0869456,0.00027988,8]
[383677397,1757081433134,-1000.0,0.00027988,8]
[383677398,1757081433146,-800.15757619,0.00027988,8]
[383677399,1757081433155,-3077.76092236,0.00027997,2]
[383677400,1757081433166,-5904.9445113,0.00028,2]
[383677401,1757081433178,-1044.07494815,0.00028,2]
[383677402,1757081433190,-46392.03807721,0.00028,2]
[383677403,1757081433202,-46658.94246334,0.00028,2]
[383677404,1757081433212,-3851.65,0.00028,7]
[383677405,1757081433221,-5908.26388407,0.00028074,2]
[383677406,1757081433231,-150.0,0.000282,2]
[383677407,1757081433244,-2140.0,0.00028268,2]
[383677408,1757081433254,-765.76511,0.00028268,2]
[383677409,1757081433264,-150.0,0.00028459,2]
[383677410,1757081433274,-150.0,0.00028459,2]
[383677411,1757081433284,-150.0,0.00028459,2]
[383677412,1757081433296,-150.0,0.00028459,2]
[383677413,1757081433306,-150.0,0.00028459,2]
[383677414,1757081433316,-150.0,0.00028459,2]
[383677415,1757081433327,-150.0,0.00028459,2]
[383677416,1757081433337,-200.0,0.00028459,2]
[383677417,1757081433347,-2140.0,0.00028551,2]
[383677418,1757081433357,-150.0,0.00028733,2]
[383677419,1757081433367,-150.0,0.00028733,2]
[383677420,1757081433378,-150.0,0.00028733,2]
[383677421,1757081433389,-2140.0,0.00028833,2]
[383677422,1757081433399,-200.0,0.00029007,2]
[383677423,1757081433409,-200.0,0.00029007,2]
[383677424,1757081433420,-200.0,0.00029007,2]
[383677425,1757081433431,-3348.94190053,0.00029017,11]
[383677426,1757081433440,-157.88,0.0002911,2]
[383677427,1757081433451,-2140.0,0.00029116,2]
[383677428,1757081433461,-286.13,0.000295,2]
[383677429,1757081433471,-5908.263884,0.0002951,2]
[383677430,1757081433481,-2401.38939266,0.00029616,7]
[383677431,1757081433491,-10961.72,0.00029815,2]
[383677432,1757081433502,-627.02672982,0.00029946,2]
[383677433,1757081433512,-286.13,0.0002999,2]
[383677434,1757081433522,-286.13,0.0002999,2]
[383677435,1757081433533,-400.0,0.00029999,2]
[383677436,1757081433546,-400.0,0.00029999,2]
[383677437,1757081433556,-400.0,0.00029999,2]
[383677438,1757081433566,-400.0,0.00029999,2]
[383677439,1757081433576,-522.8,0.00029999,2]
[383677440,1757081433586,-400.0,0.00029999,2]
[383677441,1757081433595,-400.0,0.00029999,2]
[383677442,1757081433605,-403.80665878,0.00029999,2]
[383677443,1757081433618,-189.80086154,0.00029999,2]
[383677444,1757081433629,-400.0,0.00029999,2]
[383677445,1757081433639,-400.0,0.00029999,2]
[383677446,1757081433648,-400.0,0.00029999,2]
[383677447,1757081433658,-400.0,0.00029999,2]
[383677448,1757081433667,-400.0,0.00029999,2]
[383677449,1757081433677,-400.0,0.00029999,2]
[383677450,1757081433689,-400.0,0.00029999,2]
[383677451,1757081433699,-489.00787635,0.00029999,2]
[383677452,1757081433708,-100000.0,0.0003,2]
[383677453,1757081433718,-3348.94190053,0.00030046,13]
[383677454,1757081433728,-516.0,0.00030247,5]
[383677455,1757081433737,-400.0,0.00030273,2]
[383677456,1757081433747,-400.0,0.00030273,2]
[383677457,1757081433756,-400.0,0.00030273,2]
[383677458,1757081433766,-400.0,0.00030273,2]
[383677459,1757081433775,-522.8,0.00030273,2]
[383677460,1757081433784,-400.0,0.00030273,2]
[383677461,1757081433795,-400.0,0.00030273,2]
[383677462,1757081433804,-400.0,0.00030547,2]
[383677463,1757081433813,-400.0,0.00030547,2]
[383677464,1757081433823,-400.0,0.00030547,2]
[383677465,1757081433833,-400.0,0.00030547,2]
[383677466,1757081433843,-522.8,0.00030547,2]
[383677467,1757081433853,-400.0,0.00030547,2]
[383677468,1757081433863,-400.0,0.00030547,2]
[383677469,1757081433874,-195.85,0.00030814,2]
[383677470,1757081433884,-400.0,0.00030821,2]
[383677471,1757081433894,-400.0,0.00030821,2]
[383677472,1757081433903,-361.54322854,0.00030821,2]
[383677473,1757081433912,-400.0,0.00030821,2]
[383677474,1757081433922,-522.8,0.00030821,2]
[383677475,1757081433931,-400.0,0.00030821,2]
[383677476,1757081433942,-400.0,0.00030821,2]
[383677477,1757081433952,-171.05,0.00030826,2]
[383677478,1757081433962,-5908.263884,0.00030946,2]
[383677479,1757081433971,-1365.0,0.00031024,5]
[383677480,1757081433981,-491.129,0.00031024,28]
[383677481,1757081433990,-3348.94190053,0.00031076,15]
[383677482,1757081433999,-400.0,0.00031095,2]
[383677483,1757081434011,-400.0,0.00031095,2]
[383677484,1757081434021,-400.0,0.00031095,2]
[383677485,1757081434031,-522.8,0.00031095,2]
[383677486,1757081434040,-357.86359172,0.00031095,2]
[383677487,1757081434055,-42.13640828,0.00031095,2]
[383677488,1757081434065,-400.0,0.00031095,2]
[383677489,1757081434074,-286.13,0.00031359,2]
[383677490,1757081434084,-400.0,0.00031369,2]
[383677491,1757081434094,-400.0,0.00031369,2]
[383677492,1757081434103,-400.0,0.00031369,2]
[383677493,1757081434113,-522.8,0.00031369,2]
[383677494,1757081434126,-400.0,0.00031369,2]
[383677495,1757081434137,-400.0,0.00031369,2]
[383677496,1757081434146,-400.0,0.00031643,2]
[383677497,1757081434156,-475.8317205,0.00031643,2]
[383677498,1757081434166,-522.8,0.00031643,2]
[383677499,1757081434175,-400.0,0.00031643,2]
[383677500,1757081434185,-400.0,0.00031643,2]
[383677501,1757081434194,-400.0,0.00031917,2]
[383677502,1757081434204,-522.8,0.00031917,2]
[383677503,1757081434213,-400.0,0.00031917,2]
[383677504,1757081434223,-400.0,0.00031917,2]
[383677505,1757081434232,-3348.94190053,0.00032105,17]
[383677506,1757081434242,-369.6,0.00032191,2]
[383677507,1757081434251,-522.8,0.00032191,2]
[383677508,1757081434261,-400.0,0.00032191,2]
[383677509,1757081434270,-400.0,0.00032191,2]
[383677510,1757081434279,-627.02672975,0.00032225,2]
[383677511,1757081434289,-1480.02958044,0.00032365,2]
[383677512,1757081434303,-5908.263884,0.00032383,2]
[383677513,1757081434313,-522.8,0.00032465,2]
[383677514,1757081434323,-400.0,0.00032465,2]
[383677515,1757081434334,-400.0,0.00032465,2]
[383677516,1757081434344,-522.8,0.00032739,2]
[383677517,1757081434355,-400.0,0.00032739,2]
[383677518,1757081434365,-400.0,0.00032739,2]
[383677519,1757081434376,-500.0,0.00032877,7]
[383677520,1757081434387,-500.0,0.00032877,7]
[383677521,1757081434398,-500.0,0.00032877,7]
[383677522,1757081434409,-500.0,0.00032877,7]
[383677523,1757081434420,-392.22516294,0.00032877,7]
[383677524,1757081434431,-500.0,0.00032877,7]
[383677525,1757081434441,-500.0,0.00032877,7]
[383677526,1757081434452,-500.0,0.00032877,7]
[383677527,1757081434462,-522.8,0.00033013,2]
[383677528,1757081434473,-400.0,0.00033013,2]
[383677529,1757081434483,-400.0,0.00033013,2]
[383677530,1757081434493,-3348.94190053,0.00033134,19]
[383677531,1757081434503,-522.8,0.00033287,2]
[383677532,1757081434513,-400.0,0.00033287,2]
[383677533,1757081434523,-400.0,0.00033287,2]
[383677534,1757081434533,-1480.02958043,0.00033324,2]
[383677535,1757081434546,-516.0,0.00033356,8]
[383677536,1757081434558,-871.77,0.000335,7]
[383677537,1757081434569,-522.8,0.00033561,2]
[383677538,1757081434579,-400.0,0.00033561,2]
[383677539,1757081434598,-400.0,0.00033561,2]
[383677540,1757081434610,-502.55,0.00033649,30]
[383677541,1757081434620,-5908.263884,0.00033819,2]
[383677542,1757081434631,-522.8,0.00033835,2]
[383677543,1757081434642,-400.0,0.00033835,2]
[383677544,1757081434652,-366.59,0.00033835,2]
[383677545,1757081434662,-150.99,0.00033844,2]
[383677546,1757081434673,-150.0,0.00034003,7]
[383677547,1757081434683,-150.00000001,0.00034003,7]
[383677548,1757081434938,-150.0,0.00034003,7]
[383677549,1757081434948,-150.0,0.00034003,7]
[383677550,1757081434958,-150.0,0.00034003,7]
[383677551,1757081434967,-522.8,0.00034109,2]
[383677552,1757081434976,-400.0,0.00034109,2]
[383677553,1757081434984,-286.13,0.00034154,2]
[383677554,1757081434993,-3348.94190053,0.00034164,22]
[383677555,1757081435002,-1480.02958043,0.00034283,2]
[383677556,1757081435012,-522.8,0.00034383,2]
[383677557,1757081435021,-167.19143587,0.00034383,2]
[383677558,1757081435031,-627.02672975,0.00034504,2]
[383677559,1757081435041,-522.8,0.00034657,2]
[383677560,1757081435053,-500.0,0.00034821,7]
[383677561,1757081435063,-500.0,0.00034821,7]
[383677562,1757081435073,-150.0,0.000349,2]
[383677563,1757081435083,-522.8,0.00034931,2]
[383677564,1757081435093,-3348.94190053,0.00035193,24]
[383677565,1757081435103,-522.8,0.00035205,2]
[383677566,1757081435113,-1480.02958043,0.00035242,2]
[383677567,1757081435123,-5142.76050125,0.00035255,2]
[383677568,1757081435139,-765.50338275,0.00035255,2]
[383677569,1757081435148,-522.8,0.00035479,2]
[383677570,1757081435158,-275.75542271,0.00035634,4]
[383677571,1757081435170,-3724.24457729,0.00035634,4]
[383677572,1757081435180,-500.0,0.00035643,7]
[383677573,1757081435190,-522.8,0.00035753,2]
[383677574,1757081435200,-522.8,0.00036027,2]
[383677575,1757081435212,-1246.41662641,0.00036071,4]
[383677576,1757081435225,-343.17697357,0.00036071,4]
[383677577,1757081435237,-667.96257666,0.00036071,4]
[383677578,1757081435257,-400.0,0.00029999,2]
[383677579,1757081435266,-1742.44382336,0.00036071,4]
[383677580,1757081435276,-150.0,0.0003608,2]
[383677581,1757081435285,-746.01,0.00036168,2]
[383677582,1757081435300,-1480.02958043,0.00036201,2]
[383677583,1757081435310,-153.0,0.00036212,30]
[383677584,1757081435319,-153.0,0.00036216,30]
[383677585,1757081435328,-1231.19618294,0.00036222,26]
[383677586,1757081435340,-1352.01496436,0.00036222,26]
[383677590,1757081438225,-273.35453067,0.00023193,2]
[383677591,1757081438237,-500.0,0.00023193,2]
[383677592,1757081438246,-381.4286647,0.00025708,2]
[383677593,1757081438256,-410.05834898,0.00029999,2]
[383677594,1757081438273,-400.0,0.00029999,2]
[383677595,1757081438283,-432.46946255,0.00032877,7]
[383677596,1757081438292,-523.01306615,0.00036301,2]
[383677597,1757081438302,-150.0,0.00036349,120]
[383677598,1757081438312,-152.02181741,0.00036367,15]
[383677599,1757081438322,-268.54652399,0.000364,2]
[383677600,1757081438331,-500.0,0.00036465,7]
[383677601,1757081438341,-500.0,0.00036465,7]
[383677602,1757081438351,-516.0,0.00036466,12]
[383677603,1757081438361,-176.88013964,0.00036467,2]
[383677604,1757081438371,-3409.24208283,0.00036507,4]
[383677605,1757081438383,-590.75791717,0.00036507,4]
[383677606,1757081438392,-150.0,0.00036605,120]
[383677607,1757081438401,-5908.263884,0.00036691,2]
[383677608,1757081438411,-3851.65,0.000367,7]
[383677609,1757081438420,-150.0,0.00036704,120]
[383677610,1757081438430,-627.02672975,0.00036783,2]
[383677611,1757081438439,-235.8401863,0.00036821,2]
[383677612,1757081438449,-150.0,0.00036825,120]
[383677613,1757081438459,-3544.50664657,0.0003688,120]
[383677614,1757081438468,-3964.93937252,0.000369,9]
[383677615,1757081438478,-300.0,0.000369,14]